[Event "41st BAN National Women Chess-ch 2022"]
[Site "Dhaka"]
[Date "2022.11.26"]
[Round "9.6"]
[White "Ahmed, Walijah"]
[Black "Kazi Zarin, Tasnim"]
[Result "1/2-1/2"]
[ECO "C79"]
[WhiteElo "1977"]
[BlackElo "1860"]
[Annotator "TA"]
[PlyCount "95"]
[EventDate "2022.11.17"]
[EventCountry "BAN"]
[SourceTitle "playchess.com"]
[Source "ChessBase"]
[SourceQuality "1"]
[TimeControl "40/5400+30:1800+30"]

{[%evp 15,95,37,41,17,19,17,29,28,25,3,38,27,56,29,63,52,95,101,97,100,146,150,173,140,159,125,189,124,192,183,163,119,181,160,256,162,195,206,201,169,190,102,111,95,101,107,106,65,67,42,62,61,77,77,77,70,72,70,76,69,77,8,8,0,27,0,22,0,8,8,216,8,67,58,57,0,0,0,0,0,8,0]} 1. e4 {[%emt 0:00:07]} e5 {[%emt 0:00:09]} 2. Nf3 {[%emt 0:00:06]} Nc6 {[%emt 0:00:06]} 3. Bb5 {[%emt 0:00:06]} a6 {[%emt 0:00:06]} 4. Ba4 {[%emt 0:00:05]} d6 {[%emt 0:00:13]} 5. O-O {[%emt 0:00:34]} Bd7 {[%emt 0:00:15]} 6. c3 {[%emt 0:00:39]} Nf6 {[%emt 0:00:09]} 7. Re1 {[%emt 0:01:17]} g6 $1 {[%emt 0:00:14][%mdl 4] outshines the older 7...Be7.} 8. d4 {[%emt 0:02:39]} Bg7 {[%emt 0:00:32]} 9. Bg5 {[%emt 0:03:40] C79: Ruy Lopez: Steinitz-type lines with 3...a6 4 Ba4 Nf6 5 0-0 d6.} h6 {[%emt 0:20:22]} 10. Bh4 {[%emt 0:05:44]} (10. Bxf6 {simplifies} Bxf6 11. d5 Nb8 12. a3) 10... b5 {[%emt 0:05:21]} 11. Bb3 {[%emt 0:02:33] White has an edge.} O-O {[%emt 0:09:38]} 12. h3 {[%emt 0:11:49]} g5 {[%emt 0:05:24]} 13. Bg3 {[%emt 0:00:59][%cal Rd4e5] [#]} Nh5 $146 {[%emt 0:02:18]} (13... Qe7 14. Nbd2 g4 15. hxg4 Bxg4 16. d5 Nb8 17. a4 Nbd7 18. Bc2 Nh5 19. Nf1 Qf6) ({Predecessor:} 13... Qe7 14. Nbd2 g4 15. hxg4 Bxg4 16. d5 Nb8 17. a4 Nbd7 18. Bc2 Nh5 19. Nf1 Qf6 {0-1 (51) Shemet,M (1627)-Goerke,J (2120) Pfarrkirchen 2018}) 14. d5 {[%emt 0:08:55]} (14. Nxe5 dxe5 15. Qxh5) (14. Nxe5 {is more complex.} dxe5 15. Qxh5 exd4 16. Nd2) 14... Na5 {[%emt 0:03:52] [#]} (14... Nxg3 15. dxc6 Nxe4 16. cxd7 (16. Rxe4 Bxc6 17. Bd5 Qd7)) (14... Nxg3 $2 15. dxc6 Nxe4 16. cxd7 $18 (16. Rxe4 Bxc6 17. Bd5 Qd7 $16)) 15. Nxe5 $1 {[%emt 0:03:50]} dxe5 {[%emt 0:12:18]} (15... Nxg3 16. Nxd7 Qxd7) 16. Qxh5 {[%emt 0:01:09]} Nxb3 {[%emt 0:01:07]} 17. axb3 {[%emt 0:00:07]} Be8 {[%emt 0:04:35]} (17... c6 $142) 18. Qe2 $16 {[%emt 0:11:04] White is much more active. The black rooks are badly placed.} f6 {[%emt 0:04:26]} (18... Qd6 19. f3 f5) 19. Nd2 {[%emt 0:03:53]} h5 {[%emt 0:01:25]} 20. h4 {[%emt 0:02:10]} Bg6 {[%emt 0:02:03]} (20... g4 21. c4 Qe7) (20... c6 $16 {was called for.}) 21. c4 {[%emt 0:05:52]} (21. b4) (21. b4 $18) 21... gxh4 {[%emt 0:04:00]} (21... g4 22. Ra5 (22. cxb5 axb5 23. Rxa8 Qxa8) 22... Qb8) (21... g4 $16 22. Ra5 (22. cxb5 axb5 23. Rxa8 Qxa8 $16) 22... Qc8 23. cxb5 axb5 24. Rxb5 (24. Qxb5 c6 $14) 24... Ra2) 22. Bxh4 $18 {[%emt 0:00:19]} Qd7 {[%emt 0:00:02]} 23. Qf3 {[%emt 0:11:19]} (23. f3) 23... Bh6 {[%emt 0:01:38]} (23... bxc4 24. Nxc4 (24. bxc4 Qg4) 24... Qg4) (23... Qg4 $16 {was necessary.}) 24. Nf1 {[%emt 0:04:04]} Qh7 {[%emt 0:01:02]} (24... a5 25. cxb5 (25. Bxf6 Ra6) 25... Qxb5) (24... Qg4 $16 {keeps fighting.}) 25. Ng3 {[%emt 0:04:52]} (25. Bxf6 bxc4 26. Ne3 (26. bxc4 Bg7) 26... Bg7 27. Nxc4 Bxf6) (25. Bxf6 bxc4 26. bxc4 Bg7 $17) 25... Bg5 {[%emt 0:00:36]} 26. Bxg5 {[%emt 0:01:48]} fxg5 {[%emt 0:00:02]} 27. Qd3 {[%emt 0:00:38]} h4 {[%emt 0:05:06]} 28. Nf5 {[%emt 0:00:22]} (28. Nf1) ({White should play} 28. Nf1 $1 $18) 28... bxc4 $16 {[%emt 0:01:16]} 29. bxc4 {[%emt 0:01:08]} Bxf5 {[%emt 0:00:42]} 30. exf5 {[%emt 0:00:06]} Qxf5 {[%emt 0:02:47]} 31. Qxf5 {[%emt 0:00:22]} (31. Qe2 {seems wilder.} g4 32. Ra3 e4 33. Qc2) 31... Rxf5 {[%emt 0:00:01][%mdl 4096] Endgame KRR-KRR} 32. Re2 {[%emt 0:03:30]} Kf7 {[%emt 0:00:52]} 33. Ra5 {[%emt 0:00:57]} Ke7 {[%emt 0:01:24]} 34. b4 {[%emt 0:00:29]} Rb8 {[%emt 0:01:04]} 35. Rxa6 {[%emt 0:03:53]} Rxb4 {[%emt 0:00:03]} 36. Re6+ $1 {[%emt 0:00:14]} Kf7 {[%emt 0:02:20]} 37. Rc6 {[%emt 0:00:20]} Rb7 {[%emt 0:00:05] [#]} 38. c5 {[%emt 0:02:21]} (38. Kh2) (38. Kh2 $1 $16) 38... e4 $11 {[%emt 0:01:39]} 39. Rd2 {[%emt 0:01:44]} Re5 {[%emt 0:01:08]} 40. Ra6 {[%emt 0:01:13]} (40. Kh2 $5 {[%cal Rh2h3]}) 40... Ke7 {[%emt 0:02:08]} (40... Rb3) 41. Ra5 {[%emt 0:32:24] And now d6+ would win.} (41. Kh2) 41... Rb1+ {[%emt 0:33:40]} 42. Kh2 {[%emt 0:01:37] Strongly threatening d6+.} Kd7 {[%emt 0:00:02] [#]} (42... Kf7) (42... Kf7 $11 {and Black is okay.}) 43. Ra8 $2 {[%emt 0:00:00]} (43. d6 cxd6 44. Ra7+ (44. Rxd6+ Kc7) 44... Kd8 45. c6 (45. cxd6 Reb5)) ({White has to play} 43. d6 $1 $18 {[%cal Oc5c6] c6+! is the strong threat.} cxd6 44. Ra7+ (44. Rxd6+ Kc7 $11) 44... Kd8 45. Rxd6+ (45. cxd6 Reb5 $14) 45... Kc8 46. c6) 43... Re8 {[%emt 0:00:00]} (43... e3 44. fxe3 g4 45. c6+ Kd6) (43... e3 $11 44. fxe3 g4 45. c6+ Kd6) 44. c6+ {[%emt 0:00:00]} Ke7 {[%emt 0:00:00]} 45. Rxe8+ {[%emt 0:00:00]} (45. d6+ $1 $14 {might be stronger.} cxd6 46. Ra7+ Kf6 47. Rxd6+ Re6 48. c7) 45... Kxe8 {[%emt 0:00:00] The position is equal.} 46. Re2 {[%emt 0:00:00]} Ke7 $1 {[%emt 0:00:00]} 47. Rxe4+ {[%emt 0:00:00]} Kd6 {[%emt 0:00:00]} 48. f4 {[%emt 0:03:32] White really could win this.   Weighted Error Value: White=0.33/Black=0.32} 1/2-1/2

[Event "41st BAN National Women Chess-ch 2022"]
[Site "Dhaka"]
[Date "2022.11.27"]
[Round "10.1"]
[White "Khan, Nazrana"]
[Black "Kazi Zarin, Tasnim"]
[Result "0-1"]
[ECO "D46"]
[WhiteElo "1908"]
[BlackElo "1860"]
[Annotator "TA"]
[PlyCount "86"]
[EventDate "2022.11.17"]
[EventCountry "BAN"]
[SourceTitle "playchess.com"]
[Source "ChessBase"]
[SourceQuality "1"]
[TimeControl "40/5400+30:1800+30"]

{[%evp 18,86,20,28,21,17,12,26,20,23,25,14,11,-49,-16,-43,-36,-118,-36,-82,-85,-97,-99,-161,-93,-147,-66,-83,-81,-100,-97,-99,-94,-95,-81,-112,-78,-225,-221,-666,-618,-2372,-2312,-5319,-5319,-5235,-726,-691,-688,-664,-673,-1442,-894,-1423,-1388,-29995,-29996,-29996,-29985,-29985,-29986,-29986,-875,-844,-819,-29987,-6379,-29956,-12384,-29997,-29998]} 1. d4 {[%emt 0:01:31]} d5 {[%emt 1:31:00]} 2. c4 {[%emt 0:00:10]} c6 {[%emt 0:00:00]} 3. Nf3 {[%emt 0:00:22]} Nf6 {[%emt 0:00:00]} 4. Nc3 {[%emt 0:00:19]} e6 {[%emt 0:00:00]} 5. e3 {[%emt 0:00:29]} Nbd7 {[%emt 0:00:00]} 6. Qc2 {[%emt 0:00:32]} Bd6 {[%emt 0:00:00]} 7. Bd3 {[%emt 0:00:13]} O-O {[%emt 0:00:00]} 8. O-O {[%emt 0:00:15]} e5 {[%emt 0:00:00]} 9. cxd5 {[%emt 0:03:30]} cxd5 {[%emt 0:00:00]} 10. e4 {[%emt 0:06:48]} exd4 {[%emt 0:00:00] D46: Semi-Slav: 5 e3 Nbd7 6 Bd3, Black avoids the Meran.} 11. Nxd5 {[%emt 0:01:08]} Nxd5 {[%emt 0:00:00]} 12. exd5 {[%emt 0:00:35]} Nf6 {[%emt 0:00:00] White has an edge.} 13. Bg5 {[%emt 0:00:52]} h6 {[%emt 0:00:00]} 14. Bxf6 {[%emt 0:07:01]} Qxf6 {[%emt 0:00:00] [#]} 15. Be2 $146 {[%emt 0:03:52]} (15. Qc4 $11) ({Predecessor:} 15. Qc4 b6 16. Rad1 Bg4 17. Nxd4 Bxd1 18. Rxd1 Bc5 19. Nf5 Qxb2 20. Qh4 Rfe8 21. d6 {½-½ (34) Pali,G (2127)-Fogarasi,N (2126) Budapest 2004}) 15... Bg4 {[%emt 0:00:00] Hoping for ...Bxf3.} 16. Qd3 {[%emt 0:04:08]} Rfe8 {[%emt 0:00:00]} 17. Bd1 {[%emt 0:03:01] [#]} ({Better is} 17. Rae1 $15) 17... Bc5 {[%emt 0:00:00] Black has more active pieces. The white rooks are badly placed. A strong pair of Bishops.} ({Black should play} 17... Bf5 $1 $17 {[%cal Rf5d3]} 18. Qxd4 Qxd4 19. Nxd4 Bd3) 18. Rc1 {[%emt 0:05:58]} (18. Bc2 $15 g6 19. Nd2) 18... Bf5 $17 {[%emt 0:00:00]} 19. Qd2 {[%emt 0:07:23]} Bb6 {[%emt 0:00:00]} 20. Re1 {[%emt 0:07:32]} (20. Bc2 $17 {is a better defense.}) 20... Rad8 {[%emt 0:00:00]} ({Black should try} 20... Rxe1+ $19 21. Qxe1 d3) 21. Bb3 {[%emt 0:08:35]} (21. Rxe8+ $142 Rxe8 22. Bc2) 21... Re4 {[%emt 0:00:00]} (21... Be4 $17 22. Ba4 Re7) 22. Bc4 {[%emt 0:16:58]} g5 {[%emt 0:00:00]} 23. Bd3 {[%emt 0:09:24]} Rxe1+ {[%emt 0:00:00]} 24. Rxe1 {[%emt 0:02:28]} Bxd3 {[%emt 0:00:00]} (24... Rxd5 {feels hotter.} 25. Re8+ Kg7 26. Ne1 Re5) 25. Qxd3 {[%emt 0:00:20]} Rxd5 {[%emt 0:00:00]} 26. Qe4 {[%emt 0:00:49]} Qf5 {[%emt 0:00:00]} 27. Qe8+ {[%emt 0:01:11] Now White is beyond hope.} (27. Qxf5 $17 Rxf5 28. Ne5) 27... Kg7 $19 {[%emt 0:00:00] And now ...d3 would win.} 28. Qb8 $2 {[%emt 0:00:46]} (28. Re5 Qd7 29. Qxd7 Rxd7 30. h3) 28... d3 {[%emt 0:00:00]} 29. Rd1 {[%emt 0:00:57] Against d2} d2 {[%emt 0:00:00] ( -> ...Qc2)} 30. h3 {[%emt 0:01:37]} Qc2 {[%emt 0:00:00][%csl LRb2,LRd1]} 31. Rxd2 {[%emt 0:00:49]} Rxd2 {[%emt 0:00:00]} (31... Qc1+ $142 32. Kh2 Bc7+ 33. g3 Rxd2 34. Qxa7 Rxb2 35. Qd4+ Kg8) 32. Qe5+ {[%emt 0:00:48]} Kh7 {[%emt 0:00:00]} 33. Nxd2 {[%emt 0:01:19]} Qxd2 {[%emt 0:00:00]} 34. Qf6 {[%emt 0:01:29]} Qe1+ {[%emt 0:00:00]} 35. Kh2 {[%emt 0:00:47]} Qxf2 {[%emt 0:00:00]} ({Stronger than} 35... Bxf2 36. Qxf7+ Kh8 37. Qf8+ Kh7 38. Qf7+ Kh8 39. Qf8+ Kh7 40. Qf7+ $11) 36. Qe7 {[%emt 0:00:55] Against Bc7+} Qf4+ {[%emt 0:00:00]} 37. Kh1 {[%emt 0:00:17]} Bc7 {[%emt 0:00:01][%csl Gc7][%cal Rf4h2]} 38. Kg1 {[%emt 0:00:37]} Qc1+ {[%emt 0:04:02]} 39. Kf2 {[%emt 0:00:01] [#]} Qxb2+ {[%emt 0:00:15]} (39... Bg3+ $142 $1 40. Kf3 Qf1+ 41. Ke3 Qe1+ 42. Kf3 Qf2+ 43. Ke4 Qe2+ 44. Kd4 Qxe7 45. Kd3 Qd6+ 46. Kc2 Qd4 47. a4 Qc4+ 48. Kb1 Be5 49. g3 Qb3 50. Kc1 Qxb2+ 51. Kd1 Bc3 52. h4 Qd2#) 40. Kf3 {[%emt 0:01:29]} Qc3+ {[%emt 0:00:15]} 41. Kf2 {[%emt 0:30:42]} Bb6+ {[%emt 0:30:38]} (41... Bg3+ $142 42. Ke2 Qe1+ 43. Kf3 Qf2+ 44. Ke4 Qe2+ 45. Kd4 Qxe7 46. Kd3 Qa3+ 47. Kd2 Bf4+ 48. Kc2 b5 49. g3 Qc1+ 50. Kb3 Be5 51. Kb4 Qc4+ 52. Ka5 Qa4#) 42. Ke2 {[%emt 0:00:21]} Qc2+ {[%emt 0:00:35]} 43. Kf3 {[%emt 0:00:16]} Qf2+ {[%emt 0:00:12] Weighted Error Value: White=0.93/Black=0.49} 0-1

[Event "41st BAN National Women Chess-ch 2022"]
[Site "Dhaka"]
[Date "2022.11.27"]
[Round "10.2"]
[White "Warsia, Khusbu"]
[Black "Ahmed, Walijah"]
[Result "1-0"]
[ECO "B44"]
[WhiteElo "1540"]
[BlackElo "1977"]
[Annotator "TA"]
[PlyCount "73"]
[EventDate "2022.11.17"]
[EventCountry "BAN"]
[SourceTitle "playchess.com"]
[Source "ChessBase"]
[SourceQuality "1"]
[TimeControl "40/5400+30:1800+30"]

{[%evp 16,73,14,0,36,0,0,0,27,19,52,11,64,-41,0,0,0,0,20,21,85,62,116,118,108,113,164,169,288,297,341,356,585,577,966,952,867,895,895,897,1281,1208,1991,1987,1884,1916,1837,1822,1672,1409,1336,1335,1761,1737,1720,1640,2424,2348,6183,5224]} 1. e4 {[%emt 0:07:34]} c5 {[%emt 0:00:07]} 2. Nf3 {[%emt 0:00:05]} e6 {[%emt 0:00:06]} 3. d4 {[%emt 0:00:04]} cxd4 {[%emt 0:00:04]} 4. Nxd4 {[%emt 0:00:05]} Nc6 {[%emt 0:00:06]} 5. c4 {[%emt 0:00:28]} Nf6 {[%emt 0:00:13]} 6. Nc3 {[%emt 0:00:07]} Bb4 {[%emt 0:00:05]} 7. Nxc6 {[%emt 0:02:46]} bxc6 {[%emt 0:00:04]} 8. Bd3 {[%emt 0:00:06]} e5 {[%emt 0:00:21]} 9. O-O {[%emt 0:00:34]} Bc5 {[%emt 0:00:24] B44: Sicilian: Taimanov: 5 Nb5.} 10. Kh1 {[%emt 0:01:48]} d6 {[%emt 0:04:11] [#] Strongly threatening ...Ng4.} 11. f4 {[%emt 0:00:36]} Ng4 {[%emt 0:03:13] White must now prevent ...Qh4. The position is equal.} 12. Qe1 {[%emt 0:02:33] [#] Inhibits Qh4.} Rb8 $146 {[%emt 0:08:01]} ({Predecessor:} 12... h5 13. f5 Rb8 14. Qg3 Ba6 15. Be2 Bd4 16. Rb1 Qb6 17. Bd2 Bf2 18. Qh3 Ke7 {1-0 (38) Vlachos,A (2439)-Milliet,S (2407) Paris 2021}) 13. h3 {[%emt 0:02:53]} h5 {[%emt 0:02:19]} 14. fxe5 {[%emt 0:05:02]} (14. f5 $14) 14... dxe5 {[%emt 0:01:02]} 15. Bc2 {[%emt 0:01:50]} Be6 {[%emt 0:14:56][%cal Oe6c4]} 16. b3 {[%emt 0:01:44][%cal Bb2b3,Bb3b4][%mdl 32]} Bd4 {[%emt 0:17:05]} 17. Bd2 {[%emt 0:03:37]} Qc8 {[%emt 0:06:43]} 18. Rd1 {[%emt 0:02:47] Black is on the road to losing.} (18. hxg4 $2 {is a self mate.} hxg4+) 18... Nh6 {[%emt 0:03:07]} ({Black should play} 18... Qd8 $14) 19. Qg3 {[%emt 0:01:10]} Ng4 {[%emt 0:05:57]} 20. Ne2 {[%emt 0:04:05][%cal Bc3e2,Be2g3,Bg3f5][%mdl 32] And now Nxd4 would win.} (20. hxg4 $2 {is the wrong capture.} hxg4+ $19) 20... Bc5 {[%emt 0:01:23]} 21. b4 $18 {[%emt 0:04:05]} (21. hxg4 $2 {loses.} hxg4+ $19) 21... Bf2 {[%emt 0:07:19]} (21... Bxc4 $142 22. bxc5 Bxe2) 22. Rxf2 {[%emt 0:00:30]} Nxf2+ {[%emt 0:00:05]} 23. Qxf2 {[%emt 0:00:07]} Bxc4 $2 {[%emt 0:00:13]} (23... h4 {is a better defense.} 24. Bc3 f6) 24. Ng3 {[%emt 0:01:49] Hoping for Nf5. White is clearly winning.} Qe6 {[%emt 0:01:44]} 25. Nf5 {[%emt 0:00:50]} O-O {[%emt 0:00:24]} 26. Qg3 {[%emt 0:00:47][%csl Gf5][%cal Rg3g7]} g6 {[%emt 0:01:13]} 27. Qg5 {[%emt 0:05:25]} Rb7 {[%emt 0:05:14] Inhibits Ne7+.} 28. Be3 {[%emt 0:01:05]} f6 {[%emt 0:09:40]} 29. Qxg6+ {[%emt 0:00:07]} Kh8 {[%emt 0:00:02]} 30. Qh6+ {[%emt 0:05:18]} Kg8 {[%emt 0:01:00]} 31. Bc5 {[%emt 0:00:47]} Qf7 {[%emt 0:01:48]} 32. Qxf8+ {[%emt 0:03:43]} Qxf8 {[%emt 0:00:06]} 33. Bxf8 {[%emt 0:00:04]} Kxf8 {[%emt 0:00:04]} 34. Rd8+ {[%emt 0:00:05]} Kf7 {[%emt 0:00:22]} 35. Nd6+ {[%emt 0:00:06]} Ke7 {[%emt 0:00:23]} 36. Nxb7 {[%emt 0:00:06]} Ba6 {[%emt 0:00:03] [#]} 37. Rh8 $1 {[%emt 0:00:10] Weighted Error Value: White=0.17 (very precise) /Black=0.59} 1-0

[Event "41st BAN National Women Chess-ch 2022"]
[Site "Dhaka"]
[Date "2022.11.27"]
[Round "10.3"]
[White "Sabiha, Marjana"]
[Black "Hamid, Rani"]
[Result "1/2-1/2"]
[ECO "B50"]
[WhiteElo "1267"]
[BlackElo "1760"]
[Annotator "NA RC COMBH"]
[PlyCount "173"]
[EventDate "2022.11.17"]
[EventCountry "BAN"]
[SourceTitle "playchess.com"]
[Source "ChessBase"]
[SourceQuality "1"]
[TimeControl "40/5400+30:1800+30"]

1. e4 {[%emt 0:00:05]} c5 {[%emt 0:03:47]} 2. d3 {[%emt 0:00:22]} Nc6 {[%emt 0:00:15]} 3. Nf3 {[%emt 0:00:25]} d6 {[%emt 0:00:47]} 4. b3 {[%emt 0:00:37]} Bg4 {[%emt 0:00:32]} 5. Bb2 {[%emt 0:00:55]} e6 {[%emt 0:00:36]} 6. Nbd2 {[%emt 0:00:36]} Nf6 {[%emt 0:00:37]} 7. g3 {[%emt 0:01:05]} Be7 {[%emt 0:00:38]} 8. Bg2 {[%emt 0:00:15]} O-O {[%emt 0:00:21]} 9. O-O {[%emt 0:00:32]} Rc8 {[%emt 0:00:54]} 10. a3 {[%emt 0:02:28]} b5 {[%emt 0:01:50]} 11. c4 {[%emt 0:02:55]} a6 {[%emt 0:01:15]} 12. Qc2 {[%emt 0:02:29]} Nd7 {[%emt 0:01:31]} 13. Qb1 {[%emt 0:04:27]} Nde5 {[%emt 0:01:57]} 14. Nxe5 {[%emt 0:02:33]} dxe5 {[%emt 0:00:36]} 15. Re1 {[%emt 0:01:05]} Qd6 {[%emt 0:02:43]} 16. Bf3 {[%emt 0:01:53]} Bxf3 {[%emt 0:04:39]} 17. Nxf3 {[%emt 0:00:14]} Rfd8 {[%emt 0:01:23]} 18. Rd1 {[%emt 0:00:40]} Rb8 {[%emt 0:03:42]} 19. Qc2 {[%emt 0:01:59]} f6 {[%emt 0:01:58]} 20. Bc1 {[%emt 0:03:43]} bxc4 {[%emt 0:02:54]} 21. bxc4 {[%emt 0:01:27]} Na5 {[%emt 0:00:55]} 22. Be3 {[%emt 0:04:57]} Rb3 {[%emt 0:02:13]} 23. Ne1 {[%emt 0:01:01]} Rdb8 {[%emt 0:01:56]} 24. Rdb1 {[%emt 0:05:18]} R8b7 {[%emt 0:03:44]} 25. Bd2 {[%emt 0:01:27]} Qb8 {[%emt 0:00:59]} 26. Rxb3 {[%emt 0:04:39]} Nxb3 {[%emt 0:00:14]} 27. Rb1 {[%emt 0:03:02]} a5 {[%emt 0:01:51]} 28. a4 {[%emt 0:02:10]} Nd4 {[%emt 0:02:54]} 29. Rxb7 {[%emt 0:02:22]} Qxb7 {[%emt 0:00:01]} 30. Qd1 {[%emt 0:02:22]} Bd8 {[%emt 0:01:07]} 31. Be3 {[%emt 0:03:28]} Qd7 {[%emt 0:04:27]} 32. Bxd4 {[%emt 0:02:14]} exd4 {[%emt 0:00:11]} 33. Qb3 {[%emt 0:00:44]} Kf7 {[%emt 0:03:34]} 34. Nc2 {[%emt 0:00:31]} h5 {[%emt 0:01:16]} 35. Qb5 {[%emt 0:01:12]} Qc7 {[%emt 0:00:28]} 36. Ne1 {[%emt 0:01:18]} h4 {[%emt 0:00:36]} 37. Kg2 {[%emt 0:00:36]} hxg3 {[%emt 0:01:14]} 38. hxg3 {[%emt 0:02:15]} g5 {[%emt 0:00:38]} 39. Nf3 {[%emt 0:04:13]} f5 {[%emt 0:03:02]} 40. exf5 {[%emt 0:01:13]} exf5 {[%emt 0:00:01]} 41. Nd2 {[%emt 0:32:07]} g4 {[%emt 0:33:51]} 42. Nb3 {[%emt 0:00:59]} Be7 {[%emt 0:00:12]} 43. Nxa5 {[%emt 0:02:09]} f4 {[%emt 0:00:09]} 44. gxf4 {[%emt 0:04:12]} Qxf4 {[%emt 0:00:55]} 45. Qc6 {[%emt 0:00:31]} Bd6 {[%emt 0:01:26]} 46. Qd5+ {[%emt 0:02:53]} Kg7 {[%emt 0:00:17]} 47. Qe4 {[%emt 0:01:03]} Qh2+ {[%emt 0:10:19]} 48. Kf1 {[%emt 0:00:13]} Qh3+ {[%emt 0:00:01]} 49. Ke2 {[%emt 0:01:25]} g3 {[%emt 0:00:43]} 50. fxg3 {[%emt 0:00:30]} Qh2+ {[%emt 0:01:13]} 51. Kf1 {[%emt 0:06:51]} Qh3+ {[%emt 0:03:39]} 52. Qg2 {[%emt 0:01:15]} Qf5+ {[%emt 0:00:14]} 53. Ke2 {[%emt 0:02:03]} Qe5+ {[%emt 0:01:09]} 54. Kd2 {[%emt 0:01:14]} Qe3+ {[%emt 0:02:46]} 55. Kc2 {[%emt 0:00:26]} Bxg3 {[%emt 0:00:16]} 56. Nb7 {[%emt 0:01:50]} Kh6 {[%emt 0:01:50]} 57. Nxc5 {[%emt 0:00:55]} Bf4 {[%emt 0:02:51]} 58. Nb3 {[%emt 0:00:34]} Qe8 {[%emt 0:02:34]} 59. Qh3+ {[%emt 0:02:47]} Kg5 {[%emt 0:01:10]} 60. Qg2+ {[%emt 0:01:24]} Kf6 {[%emt 0:00:36]} 61. Qe4 {[%emt 0:01:25]} Be5 {[%emt 0:00:01]} 62. Nc5 {[%emt 0:01:42]} Qe7 {[%emt 0:01:55]} 63. Qh4+ {[%emt 0:01:27]} Kf7 {[%emt 0:00:19]} 64. Qxe7+ {[%emt 0:06:48]} Kxe7 {[%emt 0:19:48]} 65. Kb3 {[%emt 0:00:00]} Kd6 {[%emt 0:00:00]} 66. Kb4 {[%emt 0:00:00]} Kc6 {[%emt 0:00:00]} 67. Ne4 {[%emt 0:00:00]} Bc7 {[%emt 0:00:00]} 68. Nf6 {[%emt 0:00:00]} Bd6+ {[%emt 0:00:00]} 69. Ka5 {[%emt 0:00:00]} Be5 {[%emt 0:00:00]} 70. Nd5 {[%emt 0:00:00]} Bg3 {[%emt 0:00:00]} 71. Ka6 {[%emt 0:00:14]} Be1 {[%emt 0:00:00]} 72. Nf4 {[%emt 0:02:07]} Bc3 {[%emt 0:00:00]} 73. Ne2 {[%emt 0:00:00]} Kc5 {[%emt 0:00:00]} 74. a5 {[%emt 0:00:00]} Be1 {[%emt 0:00:00]} 75. Nf4 {[%emt 0:00:00]} Bc3 {[%emt 0:00:00]} 76. Ne6+ {[%emt 0:00:00]} Kc6 {[%emt 0:00:00]} 77. Nd8+ {[%emt 0:00:00]} Kc7 {[%emt 0:00:00]} 78. Nb7 {[%emt 0:00:00]} Kc6 {[%emt 0:00:00]} 79. Ka7 {[%emt 0:00:00]} Kc7 {[%emt 0:00:00]} 80. a6 {[%emt 0:00:00]} Bb4 {[%emt 0:00:00]} 81. c5 {[%emt 0:00:00]} Ba3 {[%emt 0:00:00]} 82. c6 {[%emt 0:00:00]} Bb4 {[%emt 0:00:00]} 83. Nd8 {[%emt 0:00:00]} Bc5+ {[%emt 0:00:00]} 84. Ka8 {[%emt 0:00:00]} Bb6 {[%emt 0:00:00]} 85. Ne6+ {[%emt 0:00:00]} Kc8 {[%emt 0:00:00]} 86. a7 {[%emt 0:00:00]} Bxa7 {[%emt 0:00:00]} 87. Kxa7 {[%emt 0:00:00]} 1/2-1/2

[Event "41st BAN National Women Chess-ch 2022"]
[Site "Dhaka"]
[Date "2022.11.27"]
[Round "10.4"]
[White "Wadifa, Ahmed"]
[Black "Jannatul, Ferdous"]
[Result "0-1"]
[ECO "B12"]
[WhiteElo "1656"]
[BlackElo "1861"]
[Annotator "NA RC COMBH"]
[PlyCount "60"]
[EventDate "2022.11.17"]
[EventCountry "BAN"]
[SourceTitle "playchess.com"]
[Source "ChessBase"]
[SourceQuality "1"]
[TimeControl "40/5400+30:1800+30"]

1. e4 {[%emt 0:00:26]} c6 {[%emt 0:00:30]} 2. d4 {[%emt 0:00:05]} d5 {[%emt 0:00:13]} 3. e5 {[%emt 0:00:30]} Bf5 {[%emt 0:00:03]} 4. Nf3 {[%emt 0:00:06]} e6 {[%emt 0:00:09]} 5. Be2 {[%emt 0:00:08]} c5 {[%emt 0:00:35]} 6. c4 {[%emt 0:01:42]} dxc4 {[%emt 0:01:44]} 7. Bxc4 {[%emt 0:00:41]} Nc6 {[%emt 0:00:24]} 8. Be3 {[%emt 0:02:33]} cxd4 {[%emt 0:02:18]} 9. Bxd4 {[%emt 0:05:50]} Nxd4 10. Nxd4 {[%emt 0:00:04]} Qa5+ {[%emt 0:04:28]} 11. Kf1 {[%emt 0:00:52]} O-O-O {[%emt 0:40:56]} 12. Qc1 {[%emt 0:05:12]} Rxd4 {[%emt 0:02:47]} 13. Bxe6+ {[%emt 0:00:25]} Kd8 {[%emt 0:00:02]} 14. Bxf5 {[%emt 0:03:42]} Qb5+ {[%emt 0:02:28]} 15. Kg1 {[%emt 0:00:24]} Qxb2 {[%emt 0:10:55]} 16. Qc8+ {[%emt 0:12:32]} Ke7 {[%emt 0:00:14]} 17. h4 {[%emt 0:03:45]} Rd1+ {[%emt 0:02:07]} 18. Kh2 {[%emt 0:00:02]} Qxe5+ {[%emt 0:00:09]} 19. g3 {[%emt 0:00:05]} Rxh1+ {[%emt 0:00:29]} 20. Kxh1 {[%emt 0:00:03]} Qxa1 {[%emt 0:00:50]} 21. Qd7+ {[%emt 0:03:28]} Kf6 {[%emt 0:00:33]} 22. g4 {[%emt 0:00:16]} g6 {[%emt 0:02:36]} 23. Kg2 {[%emt 0:06:06]} Kg7 {[%emt 0:08:02]} 24. Be4 {[%emt 0:03:07]} Nf6 {[%emt 0:00:47]} 25. Qxb7 {[%emt 0:00:28]} Nxe4 {[%emt 0:19:41]} 26. Qxe4 {[%emt 0:50:58]} Bc5 {[%emt 0:00:00]} 27. g5 {[%emt 0:00:00]} Qd4 {[%emt 0:00:00]} 28. Qf3 {[%emt 0:00:00]} Rb8 {[%emt 0:00:00]} 29. Nc3 {[%emt 0:00:00]} Rb4 {[%emt 0:00:00]} 30. Kf1 {[%emt 0:00:00]} Qf4 {[%emt 0:00:00]} 0-1